lending/lending_fUSD_20250719
["ID","MTS","AMOUNT","RATE_DAILY","PERIOD"]
[373171255,1752889842739,-480.0,0.00019178,2]
[373171258,1752889842749,-131.79797519,0.00019178,2]
[373171262,1752889842767,-348.20202481,0.00019178,2]
[373171264,1752889842778,-462.48925063,0.00019178,2]
[373171266,1752889842788,-462.53364301,0.00019178,2]
[373171268,1752889842798,-480.0,0.00019178,2]
[373171270,1752889842808,-375.31181516,0.00019178,2]
[373171273,1752889842819,-104.68818484,0.00019178,2]
[373171275,1752889842829,-480.0,0.00019178,2]
[373171277,1752889842838,-480.0,0.00019178,2]
[373171279,1752889842847,-116.21181516,0.00019178,2]
[373171281,1752889842859,-363.78818484,0.00019178,2]
[373171283,1752889842869,-480.0,0.00019178,2]
[373171285,1752889842879,-480.0,0.00019178,2]
[373171287,1752889842889,-480.0,0.00019178,2]
[373171289,1752889842898,-480.0,0.00019178,2]
[373171291,1752889842909,-497.21,0.00019178,2]
[373171293,1752889842918,-480.0,0.00019178,2]
[373171295,1752889842928,-480.0,0.00019178,2]
[373171297,1752889842938,-468.21777596,0.00019178,2]
[373171299,1752889842947,-480.0,0.00019178,2]
[373171301,1752889842956,-504.28,0.00019178,2]
[373171303,1752889842966,-480.0,0.00019178,2]
[373171305,1752889842975,-480.0,0.00019178,2]
[373171307,1752889842985,-2035.93,0.00019178,2]
[373171309,1752889842995,-490.21,0.00019178,2]
[373171311,1752889843004,-480.0,0.00019178,2]
[373171313,1752889843014,-426.4619825,0.00019178,2]
[373171315,1752889843024,-501.52,0.00019178,2]
[373171317,1752889843033,-562.57,0.00019178,2]
[373171319,1752889843043,-398.30825486,0.00019178,2]
[373171344,1752889843277,-81.69174514,0.00019178,2]
[373171346,1752889843287,-548.29,0.00019178,2]
[373171348,1752889843296,-150.67312443,0.00019178,2]
[373171350,1752889843306,-480.0,0.00019178,2]
[373171352,1752889843315,-480.0,0.00019178,2]
[373171354,1752889843325,-480.0,0.00019178,2]
[373171356,1752889843335,-395.10588131,0.00019178,2]
[373171358,1752889843347,-84.89411869,0.00019178,2]
[373171360,1752889843356,-480.0,0.00019178,2]
[373171362,1752889843366,-480.0,0.00019178,2]
[373171364,1752889843375,-480.0,0.00019178,2]
[373171366,1752889843385,-818.89,0.00019178,2]
[373171368,1752889843395,-462.35505024,0.00019178,2]
[373171370,1752889843405,-480.0,0.00019178,2]
[373171372,1752889843414,-480.0,0.00019178,2]
[373171374,1752889843424,-359.53496844,0.00019178,2]
[373171376,1752889843433,-384.4689572,0.00019178,2]
[373171378,1752889843445,-303.1810428,0.00019178,2]
[373171380,1752889843454,-480.0,0.00019178,2]
[373171382,1752889843465,-2202.48,0.00019178,2]
[373171384,1752889843475,-618.1,0.00019178,2]
[373171387,1752889843485,-480.0,0.00019178,2]
[373171389,1752889843494,-480.0,0.00019178,2]
[373171390,1752889843503,-480.0,0.00019178,2]
[373171393,1752889843514,-466.2448111,0.00019178,2]
[373171394,1752889843524,-480.0,0.00019178,2]
[373171396,1752889843533,-480.0,0.00019178,2]
[373171398,1752889843542,-936.33,0.00019178,2]
[373171400,1752889843551,-480.0,0.00019178,2]
[373171402,1752889843561,-480.0,0.00019178,2]
[373171404,1752889843571,-117.20349384,0.00019178,2]
[373171407,1752889843585,-362.79650616,0.00019178,2]
[373171409,1752889843594,-375.19237443,0.00019178,2]
[373171411,1752889843605,-104.80762557,0.00019178,2]
[373171413,1752889843616,-480.0,0.00019178,2]
[373171415,1752889843625,-480.0,0.00019178,2]
[373171417,1752889843635,-480.0,0.00019178,2]
[373171419,1752889843645,-480.0,0.00019178,2]
[373171421,1752889843655,-309.2865667,0.00019178,2]
[373171422,1752889843666,-480.0,0.00019178,2]
[373171425,1752889843676,-480.0,0.00019178,2]
[373171426,1752889843685,-552.82247292,0.00019178,2]
[373171429,1752889843695,-1561.05,0.00019178,2]
[373171430,1752889843704,-1095.87,0.00019178,2]
[373171432,1752889843714,-480.0,0.00019178,2]
[373171435,1752889843724,-480.0,0.00019178,2]
[373171437,1752889843735,-480.0,0.00019178,2]
[373171439,1752889843744,-489.07754892,0.00019178,2]
[373171441,1752889843753,-1470.62,0.00019178,2]
[373171442,1752889843763,-480.0,0.00019178,2]
[373171445,1752889843773,-481.68718818,0.00019178,2]
[373171447,1752889843783,-15887.57,0.00019178,2]
[373171448,1752889843793,-480.0,0.00019178,2]
[373171451,1752889843802,-480.0,0.00019178,2]
[373171452,1752889843812,-480.0,0.00019178,2]
[373171455,1752889843823,-480.0,0.00019178,2]
[373171456,1752889843832,-462.36643559,0.00019178,2]
[373171458,1752889843843,-3440.0,0.00019178,2]
[373171460,1752889843854,-505.31,0.00019178,2]
[373171463,1752889843865,-661.19,0.00019178,2]
[373171465,1752889843875,-480.0,0.00019178,2]
[373171467,1752889843887,-2091.14,0.00019178,2]
[373171469,1752889843897,-811.22,0.00019178,2]
[373171470,1752889843908,-1260.7,0.00019178,2]
[373171472,1752889843918,-480.0,0.00019178,2]
[373171475,1752889843928,-480.0,0.00019178,2]
[373171477,1752889843939,-480.0,0.00019178,2]
[373171479,1752889843948,-237.72250907,0.00019178,2]
[373171481,1752889843957,-2023.49,0.00019178,2]
[373171483,1752889843966,-958.94,0.00019178,2]
[373171485,1752889843976,-480.0,0.00019178,2]
[373171487,1752889843986,-480.0,0.00019178,2]
[373171489,1752889843996,-689.88,0.00019178,2]
[373171491,1752889844005,-480.0,0.00019178,2]
[373171493,1752889844015,-545.23,0.00019178,2]
[373171494,1752889844025,-748.38,0.00019178,2]
[373171496,1752889844035,-664.19,0.00019178,2]
[373171499,1752889844045,-480.0,0.00019178,2]
[373171501,1752889844055,-480.0,0.00019178,2]
[373171503,1752889844064,-548.66,0.00019178,2]
[373171505,1752889844074,-611.02,0.00019178,2]
[373171507,1752889844084,-1476.64,0.00019178,2]
[373171509,1752889844093,-464.62072435,0.00019178,2]
[373171511,1752889844103,-480.0,0.00019178,2]
[373171513,1752889844113,-480.0,0.00019178,2]
[373171515,1752889844123,-641.37,0.00019178,2]
[373171517,1752889844132,-480.0,0.00019178,2]
[373171519,1752889844142,-480.0,0.00019178,2]
[373171520,1752889844155,-2525.28,0.00019178,2]
[373171522,1752889844164,-1562.46,0.00019178,2]
[373171524,1752889844174,-673.74,0.00019178,2]
[373171527,1752889844183,-846.8,0.00019178,2]
[373171528,1752889844193,-712.57,0.00019178,2]
[373171530,1752889844202,-1832.83,0.00019178,2]
[373171532,1752889844212,-480.0,0.00019178,2]
[373171534,1752889844221,-480.0,0.00019178,2]
[373171536,1752889844231,-480.0,0.00019178,2]
[373171538,1752889844241,-853.3,0.00019178,2]
[373171540,1752889844251,-480.0,0.00019178,2]
[373171542,1752889844260,-1334.13,0.00019178,2]
[373171544,1752889844270,-480.0,0.00019178,2]
[373171546,1752889844280,-480.0,0.00019178,2]
[373171548,1752889844291,-480.0,0.00019178,2]
[373171550,1752889844301,-1028.02,0.00019178,2]
[373171552,1752889844310,-480.0,0.00019178,2]
[373171554,1752889844320,-506.57,0.00019178,2]
[373171556,1752889844330,-1671.76,0.00019178,2]
[373171558,1752889844339,-480.0,0.00019178,2]
[373171560,1752889844349,-480.0,0.00019178,2]
[373171562,1752889844358,-480.0,0.00019178,2]
[373171565,1752889844368,-866.58,0.00019178,2]
[373171567,1752889844378,-480.0,0.00019178,2]
[373171569,1752889844387,-480.0,0.00019178,2]
[373171571,1752889844397,-480.0,0.00019178,2]
[373171573,1752889844408,-975.79,0.00019178,2]
[373171575,1752889844417,-480.0,0.00019178,2]
[373171577,1752889844426,-480.0,0.00019178,2]
[373171578,1752889844435,-1338.51,0.00019178,2]
[373171581,1752889844447,-480.0,0.00019178,2]
[373171583,1752889844458,-480.0,0.00019178,2]
[373171585,1752889844469,-749.04,0.00019178,2]
[373171587,1752889844480,-1141.89,0.00019178,2]
[373171588,1752889844491,-480.0,0.00019178,2]
[373171591,1752889844500,-6257.59,0.00019178,2]
[373171593,1752889844510,-1190.47,0.00019178,2]
[373171594,1752889844519,-1342.71,0.00019178,2]
[373171597,1752889844529,-480.0,0.00019178,2]
[373171599,1752889844538,-480.0,0.00019178,2]
[373171601,1752889844548,-480.0,0.00019178,2]
[373171602,1752889844558,-1162.36,0.00019178,2]
[373171604,1752889844567,-570.25,0.00019178,2]
[373171607,1752889844581,-480.0,0.00019178,2]
[373171609,1752889844591,-480.0,0.00019178,2]
[373171611,1752889844600,-753.71,0.00019178,2]
[373171613,1752889844609,-480.0,0.00019178,2]
[373171615,1752889844619,-572.78,0.00019178,2]
[373171617,1752889844628,-911.83,0.00019178,2]
[373171618,1752889844638,-1250.81,0.00019178,2]
[373171619,1752889844647,-480.0,0.00019178,2]
[373171620,1752889844658,-480.0,0.00019178,2]
[373171622,1752889844667,-835.97,0.00019178,2]
[373171624,1752889844676,-480.0,0.00019178,2]
[373171626,1752889844686,-480.0,0.00019178,2]
[373171628,1752889844695,-480.0,0.00019178,2]
[373171630,1752889844705,-1701.12,0.00019178,2]
[373171632,1752889844716,-538.36,0.00019178,2]
[373171634,1752889844725,-480.0,0.00019178,2]
[373171636,1752889844735,-1610.13,0.00019178,2]
[373171638,1752889844744,-480.0,0.00019178,2]
[373171640,1752889844753,-480.0,0.00019178,2]
[373171642,1752889844763,-480.0,0.00019178,2]
[373171644,1752889844772,-480.0,0.00019178,2]
[373171646,1752889844781,-3007.93,0.00019178,2]
[373171648,1752889844791,-697.23,0.00019178,2]
[373171650,1752889844800,-1735.62,0.00019178,2]
[373171652,1752889844809,-1380.22,0.00019178,2]
[373171654,1752889844820,-480.0,0.00019178,2]
[373171656,1752889844829,-480.0,0.00019178,2]
[373171658,1752889844839,-480.0,0.00019178,2]
[373171660,1752889844848,-739.04,0.00019178,2]
[373171662,1752889844858,-855.54,0.00019178,2]
[373171664,1752889844867,-462.8634358,0.00019178,2]
[373171666,1752889844877,-511.36,0.00019178,2]
[373171668,1752889844887,-480.0,0.00019178,2]
[373171670,1752889844896,-480.0,0.00019178,2]
[373171672,1752889844907,-887.37,0.00019178,2]
[373171674,1752889844916,-6647.08,0.00019178,2]
[373171683,1752889844994,-620.53,0.00019178,2]
[373171685,1752889845005,-1924.32,0.00019178,2]
[373171688,1752889845020,-480.0,0.00019178,2]
[373171690,1752889845030,-480.0,0.00019178,2]
[373171692,1752889845040,-513.9,0.00019178,2]
[373171694,1752889845049,-73.34092766,0.00019178,2]
[373171699,1752889845082,-3708.09907234,0.00019178,2]
[373171701,1752889845091,-480.0,0.00019178,2]
[373171703,1752889845101,-480.0,0.00019178,2]
[373171705,1752889845110,-776.21,0.00019178,2]
[373171707,1752889845120,-480.0,0.00019178,2]
[373171709,1752889845129,-470.63695672,0.00019178,2]
[373171711,1752889845141,-882.17,0.00019178,2]
[373171713,1752889845151,-480.0,0.00019178,2]
[373171715,1752889845161,-480.0,0.00019178,2]
[373171717,1752889845170,-1168.82,0.00019178,2]
[373171719,1752889845180,-1000.0,0.00019178,2]
[373171721,1752889845189,-724.7,0.00019178,2]
[373171723,1752889845198,-480.0,0.00019178,2]
[373171725,1752889845207,-480.0,0.00019178,2]
[373171727,1752889845216,-480.0,0.00019178,2]
[373171729,1752889845226,-1550.69,0.00019178,2]
[373171731,1752889845235,-480.0,0.00019178,2]
[373171733,1752889845243,-480.0,0.00019178,2]
[373171735,1752889845253,-666.6,0.00019178,2]
[373171737,1752889845262,-337.11321672,0.00019178,2]
[373171739,1752889845272,-583.62,0.00019178,2]
[373171741,1752889845281,-480.0,0.00019178,2]
[373171743,1752889845291,-480.0,0.00019178,2]
[373171745,1752889845300,-480.0,0.00019178,2]
[373171747,1752889845312,-1297.57,0.00019178,2]
[373171749,1752889845321,-480.0,0.00019178,2]
[373171751,1752889845330,-480.0,0.00019178,2]
[373171753,1752889845339,-496.8,0.00019178,2]
[373171755,1752889845348,-490.61,0.00019178,2]
[373171757,1752889845357,-879.84,0.00019178,2]
[373171759,1752889845367,-480.0,0.00019178,2]
[373171761,1752889845376,-480.0,0.00019178,2]
[373171763,1752889845385,-1029.07,0.00019178,2]
[373171765,1752889845394,-489.29,0.00019178,2]
[373171767,1752889845404,-1000.83,0.00019178,2]
[373171769,1752889845413,-2375.0,0.00019178,2]
[373171770,1752889845422,-1157.13,0.00019178,2]
[373171772,1752889845431,-1875.69,0.00019178,2]
[373171775,1752889845441,-1119.15,0.00019178,2]
[373171777,1752889845450,-1408.08,0.00019178,2]
[373171779,1752889845459,-1975.7,0.00019178,2]
[373171781,1752889845468,-893.88,0.00019178,2]
[373171783,1752889845478,-704.98,0.00019178,2]
[373171785,1752889845487,-2673.6,0.00019178,2]
[373171787,1752889845497,-723.58,0.00019178,2]
[373171789,1752889845506,-480.0,0.00019178,2]
[373171791,1752889845515,-480.0,0.00019178,2]
[373171793,1752889845525,-486.31,0.00019178,2]
[373171795,1752889845534,-604.53,0.00019178,2]
[373171797,1752889845543,-480.0,0.00019178,2]
[373171799,1752889845553,-480.0,0.00019178,2]
[373171801,1752889845563,-559.33,0.00019178,2]
[373171803,1752889845574,-528.93,0.00019178,2]
[373171805,1752889845585,-1020.2,0.00019178,2]
[373171807,1752889845596,-463.27681775,0.00019178,2]
[373171809,1752889845605,-480.0,0.00019178,2]
[373171811,1752889845616,-599.08,0.00019178,2]
[373171813,1752889845626,-480.0,0.00019178,2]
[373171815,1752889845636,-987.84,0.00019178,2]
[373171817,1752889845647,-648.9,0.00019178,2]
[373171819,1752889845659,-1953.52,0.00019178,2]
[373171821,1752889845669,-586.21,0.00019178,2]
[373171823,1752889845678,-480.0,0.00019178,2]
[373171826,1752889845687,-1355.46,0.00019178,2]
[373171828,1752889845698,-480.0,0.00019178,2]
[373171829,1752889845707,-480.0,0.00019178,2]
[373171832,1752889845717,-803.91,0.00019178,2]
[373171833,1752889845728,-1146.52,0.00019178,2]
[373171835,1752889845740,-894.8,0.00019178,2]
[373171837,1752889845750,-531.73,0.00019178,2]
[373171840,1752889845760,-480.0,0.00019178,2]
[373171843,1752889845771,-652.38,0.00019178,2]
[373171846,1752889845780,-480.0,0.00019178,2]
[373171849,1752889845790,-480.0,0.00019178,2]
[373171851,1752889845800,-920.09,0.00019178,2]
[373171853,1752889845810,-1050.36,0.00019178,2]
[373171854,1752889845819,-480.0,0.00019178,2]
[373171856,1752889845828,-480.0,0.00019178,2]
[373171858,1752889845837,-480.0,0.00019178,2]
[373171861,1752889845847,-151.0,0.00019178,2]
[373171863,1752889845856,-152.34,0.00019178,2]
[373171864,1752889845865,-168.54,0.00019178,2]
[373171866,1752889845875,-150.0,0.00019207,2]
[373171868,1752889845884,-289.81690053,0.00019252,2]
[373171870,1752889845894,-164.13936327,0.00019259,2]
[373171872,1752889845904,-728.51191662,0.00019268,2]
[373171874,1752889845913,-480.0,0.00019287,2]
[373171876,1752889845922,-480.0,0.00019287,2]
[373171878,1752889845931,-480.0,0.00019287,2]
[373171880,1752889845941,-480.0,0.00019287,2]
[373171882,1752889845951,-480.0,0.00019287,2]
[373171884,1752889845961,-480.0,0.00019287,2]
[373171886,1752889845970,-491.25,0.00019287,2]
[373171888,1752889845980,-480.0,0.00019287,2]
[373171890,1752889845990,-480.0,0.00019287,2]
[373171892,1752889845999,-480.0,0.00019287,2]
[373171894,1752889846008,-480.0,0.00019287,2]
[373171896,1752889846018,-480.0,0.00019287,2]
[373171898,1752889846027,-480.0,0.00019287,2]
[373171900,1752889846037,-480.0,0.00019287,2]
[373171902,1752889846046,-480.0,0.00019287,2]
[373171904,1752889846056,-480.0,0.00019287,2]
[373171906,1752889846065,-480.0,0.00019287,2]
[373171908,1752889846074,-480.0,0.00019287,2]
[373171910,1752889846084,-480.0,0.00019287,2]
[373171912,1752889846093,-480.0,0.00019287,2]
[373171914,1752889846102,-518.63,0.00019287,2]
[373171916,1752889846111,-480.0,0.00019287,2]
[373171918,1752889846121,-480.0,0.00019287,2]
[373171920,1752889846131,-69.73340971,0.00019287,2]
[373171922,1752889846144,-410.26659029,0.00019287,2]
[373171924,1752889846154,-480.0,0.00019287,2]
[373171926,1752889846163,-480.0,0.00019287,2]
[373171928,1752889846172,-480.0,0.00019287,2]
[373171930,1752889846181,-480.0,0.00019287,2]
[373171932,1752889846191,-480.0,0.00019287,2]
[373171934,1752889846201,-480.0,0.00019287,2]
[373171936,1752889846210,-480.0,0.00019287,2]
[373171938,1752889846219,-480.0,0.00019287,2]
[373171940,1752889846229,-480.0,0.00019287,2]
[373171942,1752889846238,-480.0,0.00019287,2]
[373171944,1752889846248,-480.0,0.00019287,2]
[373171946,1752889846259,-3044.14,0.00019287,2]
[373171948,1752889846268,-480.0,0.00019287,2]
[373171950,1752889846277,-480.0,0.00019287,2]
[373171952,1752889846286,-512.92,0.00019287,2]
[373171954,1752889846295,-255.81,0.00019287,2]
[373171955,1752889846304,-480.0,0.00019287,2]
[373171957,1752889846314,-480.0,0.00019287,2]
[373171960,1752889846326,-706.21,0.00019287,2]
[373171962,1752889846336,-480.0,0.00019287,2]
[373171963,1752889846347,-480.0,0.00019287,2]
[373171966,1752889846370,-421.64270729,0.00019287,2]
[373171968,1752889846409,-58.35729271,0.00019287,2]
[373171970,1752889846418,-373.61270729,0.00019287,2]
[373172009,1752889846806,-480.0,0.00019178,2]
[373172011,1752889846816,-106.38729271,0.00019287,2]
[373172013,1752889846825,-480.0,0.00019287,2]
[373172015,1752889846835,-480.0,0.00019287,2]
[373172017,1752889846844,-480.0,0.00019287,2]
[373172019,1752889846853,-480.0,0.00019287,2]
[373172021,1752889846864,-480.0,0.00019287,2]
[373172022,1752889846874,-480.0,0.00019287,2]
[373172024,1752889846883,-480.0,0.00019287,2]
[373172026,1752889846893,-480.0,0.00019287,2]
[373172028,1752889846904,-480.0,0.00019287,2]
[373172030,1752889846913,-480.0,0.00019287,2]
[373172032,1752889846922,-480.0,0.00019287,2]
[373172034,1752889846931,-480.0,0.00019287,2]
[373172036,1752889846939,-480.0,0.00019287,2]
[373172038,1752889846949,-480.0,0.00019287,2]
[373172039,1752889846958,-480.0,0.00019287,2]
[373172041,1752889846968,-278.65957702,0.00019287,2]
[373172117,1752889847741,-201.34042298,0.00019287,2]
[373172119,1752889847751,-480.0,0.00019287,2]
[373172121,1752889847761,-480.0,0.00019287,2]
[373172123,1752889847770,-480.0,0.00019287,2]
[373172125,1752889847779,-480.0,0.00019287,2]
[373172127,1752889847789,-480.0,0.00019287,2]
[373172129,1752889847798,-480.0,0.00019287,2]
[373172131,1752889847808,-544.98,0.00019287,2]
[373172133,1752889847817,-480.0,0.00019287,2]
[373172134,1752889847826,-480.0,0.00019287,2]
[373172136,1752889847836,-495.86,0.00019287,2]
[373172138,1752889847846,-480.0,0.00019287,2]
[373172140,1752889847855,-480.0,0.00019287,2]
[373172142,1752889847864,-721.32,0.00019287,2]
[373172144,1752889847874,-480.0,0.00019287,2]
[373172146,1752889847883,-480.0,0.00019287,2]
[373172148,1752889847892,-480.0,0.00019287,2]
[373172150,1752889847901,-480.0,0.00019287,2]
[373172152,1752889847912,-575.96,0.00019287,2]
[373172154,1752889847921,-480.0,0.00019287,2]
[373172156,1752889847930,-484.44685238,0.00019287,2]
[373172158,1752889847939,-480.0,0.00019287,2]
[373172159,1752889847949,-480.0,0.00019287,2]
[373172161,1752889847958,-480.0,0.00019287,2]
[373172163,1752889847970,-480.0,0.00019287,2]
[373172165,1752889847979,-480.0,0.00019287,2]
[373172167,1752889847988,-480.0,0.00019287,2]
[373172169,1752889847997,-480.0,0.00019287,2]
[373172171,1752889848007,-480.0,0.00019287,2]
[373172173,1752889848016,-915.74,0.00019287,2]
[373172175,1752889848027,-480.0,0.00019287,2]
[373172177,1752889848036,-534.47092065,0.00019287,2]
[373172179,1752889848045,-480.0,0.00019287,2]
[373172181,1752889848054,-480.0,0.00019287,2]
[373172183,1752889848063,-480.0,0.00019287,2]
[373172185,1752889848073,-480.0,0.00019287,2]
[373172187,1752889848082,-480.0,0.00019287,2]
[373172189,1752889848091,-480.0,0.00019287,2]
[373172191,1752889848101,-480.0,0.00019287,2]
[373172193,1752889848111,-480.0,0.00019287,2]
[373172195,1752889848120,-496.46,0.00019287,2]
[373172196,1752889848130,-480.0,0.00019287,2]
[373172198,1752889848139,-480.0,0.00019287,2]
[373172200,1752889848149,-578.36,0.00019287,2]
[373172202,1752889848160,-480.0,0.00019287,2]
[373172204,1752889848170,-480.0,0.00019287,2]
[373172206,1752889848179,-480.0,0.00019287,2]
[373172208,1752889848188,-480.0,0.00019287,2]
[373172210,1752889848197,-480.0,0.00019287,2]
[373172212,1752889848207,-480.0,0.00019287,2]
[373172214,1752889848217,-480.0,0.00019287,2]
[373172216,1752889848226,-480.0,0.00019287,2]
[373172218,1752889848235,-480.0,0.00019287,2]
[373172219,1752889848244,-480.0,0.00019287,2]
[373172221,1752889848255,-480.0,0.00019287,2]
[373172223,1752889848265,-480.0,0.00019287,2]
[373172225,1752889848274,-1840.49,0.00019287,2]
[373172227,1752889848283,-480.0,0.00019287,2]
[373172229,1752889848296,-480.0,0.00019287,2]
[373172231,1752889848305,-673.82,0.00019287,2]
[373172233,1752889848314,-480.0,0.00019287,2]
[373172235,1752889848324,-578.17593915,0.00019287,2]
[373172237,1752889848333,-480.0,0.00019287,2]
[373172239,1752889848342,-480.0,0.00019287,2]
[373172241,1752889848351,-498.99,0.00019287,2]
[373172243,1752889848360,-480.0,0.00019287,2]
[373172245,1752889848369,-480.0,0.00019287,2]
[373172246,1752889848379,-480.0,0.00019287,2]
[373172248,1752889848389,-480.0,0.00019287,2]
[373172250,1752889848398,-923.18,0.00019287,2]
[373172252,1752889848407,-480.0,0.00019287,2]
[373172254,1752889848415,-480.0,0.00019287,2]
[373172256,1752889848424,-480.0,0.00019287,2]
[373172257,1752889848433,-480.0,0.00019287,2]
[373172258,1752889848443,-480.0,0.00019287,2]
[373172259,1752889848452,-480.0,0.00019287,2]
[373172260,1752889848461,-480.0,0.00019287,2]
[373172261,1752889848471,-480.0,0.00019287,2]
[373172262,1752889848480,-480.0,0.00019287,2]
[373172263,1752889848489,-480.0,0.00019287,2]
[373172264,1752889848498,-480.0,0.00019287,2]
[373172265,1752889848507,-480.0,0.00019287,2]
[373172266,1752889848516,-480.0,0.00019287,2]
[373172267,1752889848525,-480.0,0.00019287,2]
[373172268,1752889848535,-480.0,0.00019287,2]
[373172269,1752889848545,-480.0,0.00019287,2]
[373172270,1752889848554,-480.0,0.00019287,2]
[373172271,1752889848563,-480.0,0.00019287,2]
[373172272,1752889848574,-497.21,0.00019287,2]
[373172273,1752889848585,-480.0,0.00019287,2]
[373172275,1752889848595,-480.0,0.00019287,2]
[373172277,1752889848604,-480.0,0.00019287,2]
[373172279,1752889848613,-480.0,0.00019287,2]
[373172281,1752889848622,-504.28,0.00019287,2]
[373172283,1752889848631,-480.0,0.00019287,2]
[373172285,1752889848641,-480.0,0.00019287,2]
[373172287,1752889848651,-2035.93,0.00019287,2]
[373172289,1752889848661,-490.21,0.00019287,2]
[373172291,1752889848670,-369.48236308,0.00019287,2]
[373172293,1752889848679,-501.52,0.00019287,2]
[373172295,1752889848688,-480.0,0.00019287,2]
[373172296,1752889848698,-562.57,0.00019287,2]
[373172298,1752889848708,-548.29,0.00019287,2]
[373172300,1752889848718,-390.79601128,0.00019287,2]
[373172301,1752889848727,-480.0,0.00019287,2]
[373172303,1752889848737,-480.0,0.00019287,2]
[373172305,1752889848746,-443.75858606,0.00019287,2]
[373172307,1752889848755,-480.0,0.00019287,2]
[373172309,1752889848766,-480.0,0.00019287,2]
[373172311,1752889848775,-480.0,0.00019287,2]
[373172313,1752889848784,-818.89,0.00019287,2]
[373172315,1752889848794,-480.0,0.00019287,2]
[373172317,1752889848816,-480.0,0.00019287,2]
[373172319,1752889848832,-687.65,0.00019287,2]
[373172320,1752889848841,-480.0,0.00019287,2]
[373172334,1752889848969,-2202.48,0.00019287,2]
[373172336,1752889848979,-480.0,0.00019287,2]
[373172338,1752889848988,-618.1,0.00019287,2]
[373172340,1752889848998,-480.0,0.00019287,2]
[373172342,1752889849007,-480.0,0.00019287,2]
[373172344,1752889849016,-480.0,0.00019287,2]
[373172346,1752889849026,-480.0,0.00019287,2]
[373172348,1752889849035,-936.33,0.00019287,2]
[373172350,1752889849045,-480.0,0.00019287,2]
[373172352,1752889849055,-480.0,0.00019287,2]
[373172354,1752889849065,-480.0,0.00019287,2]
[373172356,1752889849075,-480.0,0.00019287,2]
[373172358,1752889849084,-480.0,0.00019287,2]
[373172360,1752889849094,-480.0,0.00019287,2]
[373172362,1752889849103,-480.0,0.00019287,2]
[373172364,1752889849112,-480.0,0.00019287,2]
[373172365,1752889849122,-480.0,0.00019287,2]
[373172367,1752889849132,-480.0,0.00019287,2]
[373172370,1752889849142,-1561.05,0.00019287,2]
[373172371,1752889849151,-1095.87,0.00019287,2]
[373172374,1752889849163,-480.0,0.00019287,2]
[373172375,1752889849173,-480.0,0.00019287,2]
[373172377,1752889849183,-480.0,0.00019287,2]
[373172380,1752889849193,-480.0,0.00019287,2]
[373172381,1752889849203,-15887.57,0.00019287,2]
[373172383,1752889849212,-480.0,0.00019287,2]
[373172385,1752889849222,-480.0,0.00019287,2]
[373172388,1752889849232,-480.0,0.00019287,2]